[Event "Early-Titled-Tuesday-Blitz-March-26-2024"]
[Site "Chess.com"]
[Date "2024.03.26"]
[Round "2"]
[White "yonaltimur"]
[Black "jinbojinbo"]
[Result "0-1"]
[WhiteElo "2402"]
[BlackElo "2643"]
[TimeControl "180+1"]
[EndTime "8:17:45 PDT"]
[Termination "jinbojinbo won by checkmate"]

1. e4 {[%clk 0:03:00.9]} 1... e5 {[%clk 0:02:58]} 2. Nf3 {[%clk 0:03:01.1]} 2...
Nc6 {[%clk 0:02:58]} 3. Bb5 {[%clk 0:03:01.7]} 3... a6 {[%clk 0:02:57.6]} 4. Ba4
{[%clk 0:03:01.6]} 4... Nf6 {[%clk 0:02:57.7]} 5. O-O {[%clk 0:03:01.5]} 5... b5
{[%clk 0:02:58]} 6. Bb3 {[%clk 0:03:01.5]} 6... Bc5 {[%clk 0:02:58.5]} 7. Re1
{[%clk 0:03:00.6]} 7... d6 {[%clk 0:02:54.1]} 8. c3 {[%clk 0:03:01]} 8... O-O
{[%clk 0:02:52.5]} 9. d4 {[%clk 0:03:00.7]} 9... Bb6 {[%clk 0:02:52.6]} 10. h3
{[%clk 0:02:57]} 10... Re8 {[%clk 0:02:49.9]} 11. d5 {[%clk 0:02:46.2]} 11...
Ne7 {[%clk 0:02:49.3]} 12. Be3 {[%clk 0:02:45.3]} 12... Bxe3 {[%clk 0:02:37.3]}
13. Rxe3 {[%clk 0:02:44.8]} 13... Bb7 {[%clk 0:02:34.7]} 14. a4 {[%clk
0:02:38.6]} 14... c6 {[%clk 0:02:34.2]} 15. dxc6 {[%clk 0:02:28.7]} 15... Bxc6
{[%clk 0:02:34.5]} 16. Nbd2 {[%clk 0:02:18.7]} 16... h6 {[%clk 0:02:31.7]} 17.
Rd3 {[%clk 0:01:48.9]} 17... Bxe4 {[%clk 0:02:20.8]} 18. Nxe4 {[%clk 0:01:46.4]}
18... Nxe4 {[%clk 0:02:21.7]} 19. Nxe5 {[%clk 0:01:44.8]} 19... Qb6 {[%clk
0:01:37.7]} 20. Nxf7 {[%clk 0:01:05.4]} 20... Nxf2 {[%clk 0:01:14.3]} 21. Rxd6
{[%clk 0:01:05]} 21... Qc5 {[%clk 0:00:41.8]} 22. Qd4 {[%clk 0:00:23.5]} 22...
Nxh3+ {[%clk 0:00:33.2]} 23. gxh3 {[%clk 0:00:21.8]} 23... Qh5 {[%clk
0:00:33.1]} 24. Nxh6+ {[%clk 0:00:18.7]} 24... Kh7 {[%clk 0:00:31.3]} 25. Qd3+
{[%clk 0:00:13.4]} 25... g6 {[%clk 0:00:18.5]} 26. Nf7 {[%clk 0:00:13.5]} 26...
Nf5 {[%clk 0:00:17.7]} 27. Rd7 {[%clk 0:00:10.7]} 27... Re3 {[%clk 0:00:09.4]}
28. Ng5+ {[%clk 0:00:09.1]} 28... Kh8 {[%clk 0:00:09.3]} 29. Nf7+ {[%clk
0:00:05.4]} 29... Kg7 {[%clk 0:00:09.2]} 30. Ng5+ {[%clk 0:00:05.5]} 30... Kh8
{[%clk 0:00:09.4]} 31. Qd5 {[%clk 0:00:03.2]} 31... Qxg5+ {[%clk 0:00:07.6]} 32.
Kf2 {[%clk 0:00:02.2]} 32... Qf4+ {[%clk 0:00:07.6]} 33. Kg1 {[%clk 0:00:02.3]}
33... Rg3+ {[%clk 0:00:07.3]} 34. Kh2 {[%clk 0:00:02.7]} 34... Qf2+ {[%clk
0:00:05.6]} 35. Kh1 {[%clk 0:00:03.1]} 35... Rxh3# {[%clk 0:00:06.1]} 0-1

[Event "Early-Titled-Tuesday-Blitz-March-26-2024"]
[Site "Chess.com"]
[Date "2024.03.26"]
[Round "2"]
[White "DavidGavrilescu18"]
[Black "KevinGeorgeMicheal"]
[Result "1-0"]
[WhiteElo "2768"]
[BlackElo "2392"]
[TimeControl "180+1"]
[EndTime "8:17:47 PDT"]
[Termination "DavidGavrilescu18 won by resignation"]

1. e4 {[%clk 0:03:00.9]} 1... e5 {[%clk 0:02:57.7]} 2. Bc4 {[%clk 0:02:53.3]}
2... Nf6 {[%clk 0:02:49.2]} 3. Nc3 {[%clk 0:02:53.8]} 3... Nxe4 {[%clk
0:02:43.9]} 4. Qh5 {[%clk 0:02:53.3]} 4... Nd6 {[%clk 0:02:44.3]} 5. Bb3 {[%clk
0:02:53.7]} 5... Be7 {[%clk 0:02:41.2]} 6. Qxe5 {[%clk 0:02:53.4]} 6... O-O
{[%clk 0:02:35.3]} 7. d3 {[%clk 0:02:52.9]} 7... Kh8 {[%clk 0:02:35.1]} 8. Nge2
{[%clk 0:02:49.9]} 8... Nc6 {[%clk 0:02:34.8]} 9. Qf4 {[%clk 0:02:47.2]} 9...
Bf6 {[%clk 0:02:20.1]} 10. O-O {[%clk 0:02:45.8]} 10... Be5 {[%clk 0:02:13.9]}
11. Qf3 {[%clk 0:02:42]} 11... Nd4 {[%clk 0:02:10.4]} 12. Nxd4 {[%clk 0:02:41]}
12... Bxd4 {[%clk 0:02:10.6]} 13. Bf4 {[%clk 0:02:40.7]} 13... Nf5 {[%clk
0:01:57.9]} 14. Nd5 {[%clk 0:01:55.7]} 14... d6 {[%clk 0:01:53.8]} 15. c3 {[%clk
0:01:50.8]} 15... Bf6 {[%clk 0:01:34.3]} 16. Rae1 {[%clk 0:01:46]} 16... Be6
{[%clk 0:01:22.7]} 17. Nxf6 {[%clk 0:01:43.5]} 17... Qxf6 {[%clk 0:01:22.1]} 18.
Qxb7 {[%clk 0:01:42.6]} 18... Rab8 {[%clk 0:01:10.2]} 19. Qxc7 {[%clk
0:01:42.6]} 19... Bxb3 {[%clk 0:01:09.9]} 20. axb3 {[%clk 0:01:43.5]} 20... Rxb3
{[%clk 0:01:09.8]} 21. Re2 {[%clk 0:01:36.5]} 21... Nd4 {[%clk 0:00:52.6]} 22.
Re4 {[%clk 0:01:35.8]} 22... Ne6 {[%clk 0:00:22.7]} 23. Qxd6 {[%clk 0:01:34.1]}
23... Rd8 {[%clk 0:00:18.6]} 24. Qc6 {[%clk 0:01:32.4]} 24... Rb6 {[%clk
0:00:15.1]} 25. Qc4 {[%clk 0:01:23.6]} 25... Rxb2 {[%clk 0:00:13.2]} 26. Be5
{[%clk 0:01:21.4]} 26... Qg6 {[%clk 0:00:12.9]} 27. h4 {[%clk 0:01:08.9]} 27...
f5 {[%clk 0:00:10.5]} 28. Re3 {[%clk 0:01:05.9]} 28... Rb6 {[%clk 0:00:07.9]}
29. d4 {[%clk 0:00:59.5]} 29... f4 {[%clk 0:00:06.7]} 30. Rf3 {[%clk 0:00:57.8]}
30... Qf5 {[%clk 0:00:04.1]} 31. Re1 {[%clk 0:00:53.7]} 31... Re8 {[%clk
0:00:03.4]} 32. d5 {[%clk 0:00:50]} 32... Rb1 {[%clk 0:00:03.3]} 33. Rxb1 {[%clk
0:00:45.6]} 33... Qxb1+ {[%clk 0:00:03.8]} 34. Kh2 {[%clk 0:00:46.2]} 34... Nf8
{[%clk 0:00:03.3]} 35. Qxf4 {[%clk 0:00:45.1]} 35... Ng6 {[%clk 0:00:01.7]} 36.
Bxg7+ {[%clk 0:00:44.8]} 36... Kxg7 {[%clk 0:00:01.6]} 37. Qf7+ {[%clk 0:00:44]}
37... Kh6 {[%clk 0:00:02.1]} 38. Qxe8 {[%clk 0:00:44.1]} 38... Qb3 {[%clk
0:00:01.5]} 39. Qe3+ {[%clk 0:00:41.8]} 39... Kg7 {[%clk 0:00:01.4]} 40. Qd4+
{[%clk 0:00:42]} 40... Kh6 {[%clk 0:00:01.5]} 41. h5 {[%clk 0:00:42.4]} 41...
Kxh5 {[%clk 0:00:01.6]} 42. Rh3+ {[%clk 0:00:38.2]} 42... Kg5 {[%clk 0:00:01.7]}
43. f4+ {[%clk 0:00:35.2]} 43... Nxf4 {[%clk 0:00:01.5]} 44. Qe5+ {[%clk
0:00:35.2]} 44... Kg4 {[%clk 0:00:01.7]} 45. Rg3+ {[%clk 0:00:34.2]} 1-0

[Event "Early-Titled-Tuesday-Blitz-March-26-2024"]
[Site "Chess.com"]
[Date "2024.03.26"]
[Round "2"]
[White "Aural1011"]
[Black "LuisIbarraCh"]
[Result "0-1"]
[WhiteElo "1757"]
[BlackElo "2451"]
[TimeControl "180+1"]
[EndTime "8:17:47 PDT"]
[Termination "LuisIbarraCh won on time"]

1. d4 {[%clk 0:03:00.9]} 1... d5 {[%clk 0:02:02]} 2. c4 {[%clk 0:03:00.7]} 2...
e6 {[%clk 0:02:01.3]} 3. Nc3 {[%clk 0:03:01.2]} 3... a6 {[%clk 0:02:01.7]} 4.
cxd5 {[%clk 0:03:01.3]} 4... exd5 {[%clk 0:02:02.6]} 5. Nf3 {[%clk 0:03:01.5]}
5... Nf6 {[%clk 0:02:02.7]} 6. Bg5 {[%clk 0:03:00.7]} 6... Be6 {[%clk
0:02:02.8]} 7. e3 {[%clk 0:02:58.6]} 7... Nbd7 {[%clk 0:02:03.1]} 8. Bd3 {[%clk
0:02:58.1]} 8... Bd6 {[%clk 0:02:03.3]} 9. O-O {[%clk 0:02:56.5]} 9... c6 {[%clk
0:02:03.2]} 10. Re1 {[%clk 0:02:56]} 10... O-O {[%clk 0:01:59.4]} 11. e4 {[%clk
0:02:49.6]} 11... dxe4 {[%clk 0:01:55.9]} 12. Nxe4 {[%clk 0:02:47.5]} 12... Be7
{[%clk 0:01:56.2]} 13. Qc2 {[%clk 0:02:13.5]} 13... h6 {[%clk 0:01:54.6]} 14.
Bh4 {[%clk 0:02:01.9]} 14... Nxe4 {[%clk 0:01:53.4]} 15. Bxe7 {[%clk 0:02:01.5]}
15... Qxe7 {[%clk 0:01:54.3]} 16. Bxe4 {[%clk 0:02:02]} 16... Qd6 {[%clk
0:01:53.5]} 17. h3 {[%clk 0:01:54.4]} 17... Nf6 {[%clk 0:01:52.3]} 18. Bf5
{[%clk 0:01:48.3]} 18... Rfe8 {[%clk 0:01:45.1]} 19. Bxe6 {[%clk 0:01:38]} 19...
Rxe6 {[%clk 0:01:46]} 20. Rxe6 {[%clk 0:01:36.2]} 20... Qxe6 {[%clk 0:01:46.9]}
21. b3 {[%clk 0:01:25.4]} 21... Rd8 {[%clk 0:01:46.1]} 22. Re1 {[%clk 0:01:22]}
22... Qd7 {[%clk 0:01:35.7]} 23. Qc5 {[%clk 0:01:16]} 23... Nd5 {[%clk
0:01:36.2]} 24. Ne5 {[%clk 0:01:01.2]} 24... Qf5 {[%clk 0:01:36.4]} 25. Qa7
{[%clk 0:00:48.2]} 25... f6 {[%clk 0:01:25.3]} 26. Nc4 {[%clk 0:00:28.9]} 26...
Nf4 {[%clk 0:01:07.4]} 27. Qxb7 {[%clk 0:00:20.9]} 27... Qg5 {[%clk 0:01:06.4]}
28. Qxc6 {[%clk 0:00:17.5]} 28... Nxh3+ {[%clk 0:01:06.4]} 29. Kf1 {[%clk
0:00:15.1]} 29... Nf4 {[%clk 0:01:02]} 30. Re8+ {[%clk 0:00:14.1]} 30... Rxe8
{[%clk 0:01:02.5]} 31. Qxe8+ {[%clk 0:00:15]} 31... Kh7 {[%clk 0:01:03.3]} 32.
Qe4+ {[%clk 0:00:13.4]} 32... f5 {[%clk 0:01:03.9]} 33. Qf3 {[%clk 0:00:11]}
33... Ne6 {[%clk 0:00:54.3]} 34. Ne3 {[%clk 0:00:04.5]} 34... Nxd4 {[%clk
0:00:50.7]} 35. Qd5 {[%clk 0:00:04.5]} 35... Qf6 {[%clk 0:00:48.3]} 36. g3
{[%clk 0:00:02.7]} 36... h5 {[%clk 0:00:43.3]} 37. Kg2 {[%clk 0:00:02.1]} 37...
h4 {[%clk 0:00:39.4]} 38. b4 {[%clk 0:00:01.3]} 38... hxg3 {[%clk 0:00:39.1]}
39. fxg3 {[%clk 0:00:01.8]} 39... g6 {[%clk 0:00:33.7]} 40. a4 {[%clk
0:00:01.3]} 40... Ne6 {[%clk 0:00:31.5]} 41. b5 {[%clk 0:00:01.3]} 41... axb5
{[%clk 0:00:26.5]} 42. axb5 {[%clk 0:00:02.2]} 42... Ng5 {[%clk 0:00:27.2]} 0-1

[Event "Early-Titled-Tuesday-Blitz-March-26-2024"]
[Site "Chess.com"]
[Date "2024.03.26"]
[Round "2"]
[White "WiktoriaPOL"]
[Black "AccioChess"]
[Result "0-1"]
[WhiteElo "2272"]
[BlackElo "2513"]
[TimeControl "180+1"]
[EndTime "8:17:49 PDT"]
[Termination "AccioChess won by checkmate"]

1. c4 {[%clk 0:02:58.5]} 1... e5 {[%clk 0:02:58.1]} 2. Nc3 {[%clk 0:02:58]} 2...
Nf6 {[%clk 0:02:58.2]} 3. Nf3 {[%clk 0:02:57.7]} 3... Nc6 {[%clk 0:02:57.4]} 4.
e4 {[%clk 0:02:57.7]} 4... Bb4 {[%clk 0:02:38.9]} 5. d3 {[%clk 0:02:56.6]} 5...
O-O {[%clk 0:02:34.9]} 6. a3 {[%clk 0:02:54.8]} 6... Bxc3+ {[%clk 0:02:34.3]} 7.
bxc3 {[%clk 0:02:53.8]} 7... d6 {[%clk 0:02:34.5]} 8. g3 {[%clk 0:02:52.7]} 8...
Bg4 {[%clk 0:02:23.5]} 9. Bg2 {[%clk 0:02:50.8]} 9... Nd7 {[%clk 0:02:21.9]} 10.
h3 {[%clk 0:02:48.2]} 10... Bh5 {[%clk 0:02:18.8]} 11. O-O {[%clk 0:02:47]}
11... Qe7 {[%clk 0:02:07.5]} 12. Re1 {[%clk 0:02:32.4]} 12... Nd8 {[%clk
0:02:06.4]} 13. d4 {[%clk 0:02:29.4]} 13... Ne6 {[%clk 0:02:04.2]} 14. Be3
{[%clk 0:02:15.5]} 14... b6 {[%clk 0:01:55.5]} 15. Qd3 {[%clk 0:01:55.2]} 15...
c5 {[%clk 0:01:42.9]} 16. Rad1 {[%clk 0:01:39]} 16... cxd4 {[%clk 0:01:24.5]}
17. cxd4 {[%clk 0:01:37.8]} 17... exd4 {[%clk 0:01:24.6]} 18. Bxd4 {[%clk
0:01:33.1]} 18... Bxf3 {[%clk 0:01:22]} 19. Bxf3 {[%clk 0:01:21.9]} 19... Ne5
{[%clk 0:01:22]} 20. Bxe5 {[%clk 0:01:16.7]} 20... dxe5 {[%clk 0:01:22.9]} 21.
Qd7 {[%clk 0:01:06.3]} 21... Qxa3 {[%clk 0:01:19.7]} 22. Bg4 {[%clk 0:01:00.3]}
22... Nd4 {[%clk 0:01:18.4]} 23. Ra1 {[%clk 0:00:52.3]} 23... Qc3 {[%clk
0:01:07]} 24. Rac1 {[%clk 0:00:45.8]} 24... Qb4 {[%clk 0:01:02.4]} 25. Qc7
{[%clk 0:00:41.6]} 25... g6 {[%clk 0:00:57.7]} 26. Qxe5 {[%clk 0:00:36.6]} 26...
Qc5 {[%clk 0:00:49.3]} 27. Qf4 {[%clk 0:00:24.8]} 27... h5 {[%clk 0:00:46]} 28.
Bf3 {[%clk 0:00:23.1]} 28... a5 {[%clk 0:00:42.6]} 29. Bg2 {[%clk 0:00:21.3]}
29... a4 {[%clk 0:00:42.7]} 30. e5 {[%clk 0:00:21.2]} 30... Ra7 {[%clk 0:00:42]}
31. Bd5 {[%clk 0:00:20.3]} 31... a3 {[%clk 0:00:40.4]} 32. Qe3 {[%clk
0:00:06.8]} 32... a2 {[%clk 0:00:39.2]} 33. Rcd1 {[%clk 0:00:03.3]} 33... Nc2
{[%clk 0:00:25.4]} 34. Qd3 {[%clk 0:00:03.2]} 34... Qxd5 {[%clk 0:00:18.5]} 35.
Qxd5 {[%clk 0:00:02.8]} 35... Nxe1 {[%clk 0:00:18.1]} 36. Rxe1 {[%clk 0:00:03]}
36... a1=Q {[%clk 0:00:18.2]} 37. Rxa1 {[%clk 0:00:03.2]} 37... Rxa1+ {[%clk
0:00:18.6]} 38. Kg2 {[%clk 0:00:03.5]} 38... Re8 {[%clk 0:00:19]} 39. c5 {[%clk
0:00:03.1]} 39... bxc5 {[%clk 0:00:18.7]} 40. Qxc5 {[%clk 0:00:04]} 40... Ra2
{[%clk 0:00:17.5]} 41. Kg1 {[%clk 0:00:03]} 41... Re2 {[%clk 0:00:17.3]} 42. f4
{[%clk 0:00:02]} 42... Rd8 {[%clk 0:00:16.6]} 43. Qb6 {[%clk 0:00:01.9]} 43...
Rd1# {[%clk 0:00:16.1]} 0-1

[Event "Early-Titled-Tuesday-Blitz-March-26-2024"]
[Site "Chess.com"]
[Date "2024.03.26"]
[Round "2"]
[White "NewYearGirl"]
[Black "PavelShkapenko"]
[Result "1-0"]
[WhiteElo "2442"]
[BlackElo "2763"]
[TimeControl "180+1"]
[EndTime "8:17:50 PDT"]
[Termination "NewYearGirl won by resignation"]

1. e4 {[%clk 0:03:00.9]} 1... e5 {[%clk 0:02:58.3]} 2. Nf3 {[%clk 0:03:01.1]}
2... Nc6 {[%clk 0:02:51]} 3. Bc4 {[%clk 0:03:01.2]} 3... d6 {[%clk 0:02:49.8]}
4. d4 {[%clk 0:02:58.8]} 4... Nf6 {[%clk 0:02:49.5]} 5. dxe5 {[%clk 0:02:58.4]}
5... dxe5 {[%clk 0:02:49.6]} 6. Qxd8+ {[%clk 0:02:57.7]} 6... Nxd8 {[%clk
0:02:50.2]} 7. Nc3 {[%clk 0:02:50.5]} 7... Bb4 {[%clk 0:02:47.7]} 8. Bd2 {[%clk
0:02:45]} 8... Nc6 {[%clk 0:02:45.6]} 9. Nd5 {[%clk 0:02:35.6]} 9... Nxd5 {[%clk
0:02:40.1]} 10. exd5 {[%clk 0:02:34.5]} 10... Bxd2+ {[%clk 0:02:40.1]} 11. Kxd2
{[%clk 0:02:32.1]} 11... Ne7 {[%clk 0:02:02.1]} 12. Nxe5 {[%clk 0:02:31.3]}
12... O-O {[%clk 0:01:54.6]} 13. Rad1 {[%clk 0:02:30.2]} 13... Nf5 {[%clk
0:01:42.3]} 14. Kc1 {[%clk 0:02:23.4]} 14... Nd6 {[%clk 0:01:42.8]} 15. Bd3
{[%clk 0:02:22.9]} 15... f6 {[%clk 0:01:40.6]} 16. Nc4 {[%clk 0:02:19.1]} 16...
Bd7 {[%clk 0:01:39.4]} 17. Nxd6 {[%clk 0:02:16.6]} 17... cxd6 {[%clk 0:01:40.3]}
18. Rhe1 {[%clk 0:02:16.4]} 18... Rfe8 {[%clk 0:01:40.9]} 19. Kd2 {[%clk
0:02:12.1]} 19... Kf7 {[%clk 0:01:39]} 20. h4 {[%clk 0:02:05.4]} 20... Re5
{[%clk 0:01:34.1]} 21. c4 {[%clk 0:01:52.5]} 21... h6 {[%clk 0:01:29.2]} 22. f3
{[%clk 0:01:51.2]} 22... Rc8 {[%clk 0:01:27.6]} 23. g4 {[%clk 0:01:49.7]} 23...
a5 {[%clk 0:01:26.7]} 24. b3 {[%clk 0:01:48.9]} 24... b6 {[%clk 0:01:14.8]} 25.
h5 {[%clk 0:01:43]} 25... Kf8 {[%clk 0:01:14.8]} 26. Rxe5 {[%clk 0:01:36.8]}
26... fxe5 {[%clk 0:01:13.6]} 27. Bf5 {[%clk 0:01:36.8]} 27... Bxf5 {[%clk
0:01:12.9]} 28. gxf5 {[%clk 0:01:37.7]} 28... Rc7 {[%clk 0:01:03.5]} 29. Kd3
{[%clk 0:01:31.6]} 29... Rf7 {[%clk 0:00:45]} 30. Ke4 {[%clk 0:01:31.4]} 30...
a4 {[%clk 0:00:45.6]} 31. Rg1 {[%clk 0:01:26.9]} 31... axb3 {[%clk 0:00:44.1]}
32. axb3 {[%clk 0:01:27.1]} 32... b5 {[%clk 0:00:41.1]} 33. Rg6 {[%clk 0:01:18]}
33... bxc4 {[%clk 0:00:41.1]} 34. bxc4 {[%clk 0:01:17.2]} 34... Rd7 {[%clk
0:00:30.8]} 35. f6 {[%clk 0:01:16.1]} 35... gxf6 {[%clk 0:00:28.8]} 36. Rxf6+
{[%clk 0:01:12]} 36... Kg7 {[%clk 0:00:29.1]} 37. Rg6+ {[%clk 0:01:06.8]} 37...
Kh7 {[%clk 0:00:27.8]} 38. f4 {[%clk 0:00:58.5]} 38... exf4 {[%clk 0:00:26.9]}
39. Kxf4 {[%clk 0:00:59.4]} 39... Rc7 {[%clk 0:00:24.7]} 40. Rxd6 {[%clk
0:00:59.1]} 40... Rxc4+ {[%clk 0:00:25.3]} 41. Kf5 {[%clk 0:00:59.6]} 41... Rh4
{[%clk 0:00:25]} 42. Rd7+ {[%clk 0:00:59.2]} 42... Kg8 {[%clk 0:00:25.3]} 43.
Kg6 {[%clk 0:00:59.7]} 43... Rg4+ {[%clk 0:00:23.9]} 44. Kxh6 {[%clk 0:01:00.1]}
44... Kf8 {[%clk 0:00:24.4]} 45. d6 {[%clk 0:00:57.4]} 45... Ke8 {[%clk
0:00:24.1]} 46. Rg7 {[%clk 0:00:54.8]} 46... Rd4 {[%clk 0:00:24.1]} 47. d7+
{[%clk 0:00:52.8]} 47... Kf8 {[%clk 0:00:22.1]} 48. Kh7 {[%clk 0:00:46.5]} 48...
Rd6 {[%clk 0:00:20.5]} 49. d8=Q+ {[%clk 0:00:39.2]} 49... Rxd8 {[%clk
0:00:18.6]} 50. Rg8+ {[%clk 0:00:39.6]} 50... Ke7 {[%clk 0:00:19.2]} 51. Rxd8
{[%clk 0:00:39.9]} 51... Kxd8 {[%clk 0:00:20.1]} 52. Kg8 {[%clk 0:00:40.4]} 1-0

[Event "Early-Titled-Tuesday-Blitz-March-26-2024"]
[Site "Chess.com"]
[Date "2024.03.26"]
[Round "2"]
[White "ChessLover0108"]
[Black "GlavkonVVS"]
[Result "1-0"]
[WhiteElo "2953"]
[BlackElo "2641"]
[TimeControl "180+1"]
[EndTime "8:17:52 PDT"]
[Termination "ChessLover0108 won by resignation"]

1. Nf3 {[%clk 0:03:00.9]} 1... Nf6 {[%clk 0:02:58.9]} 2. c4 {[%clk 0:03:01.5]}
2... c5 {[%clk 0:02:58.1]} 3. g3 {[%clk 0:03:01.7]} 3... Nc6 {[%clk 0:02:58.4]}
4. Bg2 {[%clk 0:03:02.4]} 4... d6 {[%clk 0:02:59]} 5. O-O {[%clk 0:03:02.9]}
5... e6 {[%clk 0:02:59.6]} 6. d4 {[%clk 0:03:03.4]} 6... cxd4 {[%clk 0:02:59.7]}
7. Nxd4 {[%clk 0:03:04.3]} 7... Bd7 {[%clk 0:03:00.4]} 8. b3 {[%clk 0:03:03.9]}
8... a6 {[%clk 0:03:00.7]} 9. Bb2 {[%clk 0:03:03.2]} 9... Be7 {[%clk 0:03:01.3]}
10. Nc3 {[%clk 0:03:03.5]} 10... Rc8 {[%clk 0:03:01.5]} 11. Rc1 {[%clk
0:02:59.3]} 11... O-O {[%clk 0:03:01.6]} 12. Nc2 {[%clk 0:02:54.3]} 12... Qa5
{[%clk 0:03:01.2]} 13. a3 {[%clk 0:02:44.1]} 13... b5 {[%clk 0:03:00.4]} 14.
cxb5 {[%clk 0:02:45]} 14... axb5 {[%clk 0:03:00.3]} 15. b4 {[%clk 0:02:45.9]}
15... Qa6 {[%clk 0:03:00.8]} 16. Ne4 {[%clk 0:02:33.6]} 16... Nxe4 {[%clk
0:02:56.6]} 17. Bxe4 {[%clk 0:02:34.5]} 17... d5 {[%clk 0:02:57.1]} 18. Bg2
{[%clk 0:02:28.9]} 18... Rfd8 {[%clk 0:02:47.9]} 19. e4 {[%clk 0:02:28.8]} 19...
dxe4 {[%clk 0:02:47]} 20. Bxe4 {[%clk 0:02:29.7]} 20... Be8 {[%clk 0:02:37.8]}
21. Qg4 {[%clk 0:02:29.4]} 21... Bf8 {[%clk 0:02:27.3]} 22. Ne3 {[%clk
0:02:08.3]} 22... f5 {[%clk 0:02:18.5]} 23. Nxf5 {[%clk 0:02:07]} 23... exf5
{[%clk 0:02:17.3]} 24. Qxf5 {[%clk 0:02:07.9]} 24... Bg6 {[%clk 0:02:08.4]} 25.
Qe6+ {[%clk 0:02:07.9]} 25... Bf7 {[%clk 0:02:01.6]} 26. Rxc6 {[%clk 0:01:53.1]}
26... Rxc6 {[%clk 0:01:33.6]} 27. Qxc6 {[%clk 0:01:54]} 27... Qxc6 {[%clk
0:01:31.7]} 28. Bxc6 {[%clk 0:01:54.9]} 28... Rd2 {[%clk 0:01:29.2]} 29. Bc1
{[%clk 0:01:54.1]} 29... Rc2 {[%clk 0:01:24.7]} 30. Bxb5 {[%clk 0:01:54.4]}
30... Ra2 {[%clk 0:00:59.8]} 31. h4 {[%clk 0:01:29]} 31... Be7 {[%clk
0:00:49.5]} 32. Re1 {[%clk 0:01:23.3]} 32... Kf8 {[%clk 0:00:47]} 33. Bf1 {[%clk
0:01:16.5]} 33... Bd5 {[%clk 0:00:37.3]} 34. b5 {[%clk 0:01:05.2]} 34... Bc5
{[%clk 0:00:34]} 35. Be3 {[%clk 0:01:04]} 35... Bxe3 {[%clk 0:00:25.8]} 36. Rxe3
{[%clk 0:01:04.9]} 36... Ra1 {[%clk 0:00:25.8]} 37. Rc3 {[%clk 0:01:00]} 37...
Ke7 {[%clk 0:00:13.6]} 38. f4 {[%clk 0:00:58]} 38... Kd6 {[%clk 0:00:13.3]} 39.
Kf2 {[%clk 0:00:40]} 39... Ra2+ {[%clk 0:00:13.1]} 40. Ke3 {[%clk 0:00:40.4]}
40... Bb7 {[%clk 0:00:10.8]} 41. Be2 {[%clk 0:00:38.3]} 41... h6 {[%clk
0:00:09.8]} 42. Bf3 {[%clk 0:00:36.3]} 42... Bxf3 {[%clk 0:00:08.9]} 43. Kxf3
{[%clk 0:00:37.2]} 43... Rb2 {[%clk 0:00:09.4]} 44. a4 {[%clk 0:00:37.9]} 44...
Rb4 {[%clk 0:00:09.4]} 45. Ra3 {[%clk 0:00:36.6]} 45... Kc7 {[%clk 0:00:09.1]}
46. h5 {[%clk 0:00:34.8]} 46... Kb6 {[%clk 0:00:09.3]} 47. Kg4 {[%clk
0:00:35.5]} 47... Ka5 {[%clk 0:00:09.5]} 48. Kf5 {[%clk 0:00:36.3]} 48... Rc4
{[%clk 0:00:08.7]} 49. Kg6 {[%clk 0:00:35.4]} 49... Rc7 {[%clk 0:00:09]} 50. g4
{[%clk 0:00:36.1]} 50... Rb7 {[%clk 0:00:08.5]} 51. Ra1 {[%clk 0:00:36.2]} 51...
Rb6+ {[%clk 0:00:07.3]} 52. Kxg7 {[%clk 0:00:35.9]} 1-0

[Event "Early-Titled-Tuesday-Blitz-March-26-2024"]
[Site "Chess.com"]
[Date "2024.03.26"]
[Round "2"]
[White "Elsa167"]
[Black "a-z30"]
[Result "1-0"]
[WhiteElo "2830"]
[BlackElo "2435"]
[TimeControl "180+1"]
[EndTime "8:17:52 PDT"]
[Termination "Elsa167 won by resignation"]

1. b3 {[%clk 0:02:59.7]} 1... d6 {[%clk 0:03:00.9]} 2. Bb2 {[%clk 0:02:58]} 2...
Nf6 {[%clk 0:03:01.8]} 3. d4 {[%clk 0:02:47]} 3... g6 {[%clk 0:03:01.1]} 4. Nf3
{[%clk 0:02:45.7]} 4... Bg7 {[%clk 0:03:02]} 5. g3 {[%clk 0:02:44.3]} 5... O-O
{[%clk 0:03:02.9]} 6. Bg2 {[%clk 0:02:44.5]} 6... c5 {[%clk 0:03:01.7]} 7. c4
{[%clk 0:02:36.3]} 7... Ne4 {[%clk 0:03:00.5]} 8. O-O {[%clk 0:02:32.8]} 8...
Nc6 {[%clk 0:02:59.7]} 9. Nbd2 {[%clk 0:02:25.9]} 9... Bf5 {[%clk 0:02:55.2]}
10. Nh4 {[%clk 0:02:24.8]} 10... Nxd2 {[%clk 0:02:50.2]} 11. Qxd2 {[%clk
0:02:22.8]} 11... Bd7 {[%clk 0:02:40.8]} 12. d5 {[%clk 0:01:50.3]} 12... Bxb2
{[%clk 0:02:41.7]} 13. Qxb2 {[%clk 0:01:33.7]} 13... Na5 {[%clk 0:02:38.9]} 14.
e4 {[%clk 0:01:27.5]} 14... Rb8 {[%clk 0:02:26.7]} 15. Qc3 {[%clk 0:01:21.6]}
15... b5 {[%clk 0:02:25.2]} 16. Rfe1 {[%clk 0:01:14]} 16... bxc4 {[%clk
0:02:23.9]} 17. bxc4 {[%clk 0:01:14.9]} 17... Rb4 {[%clk 0:02:22.4]} 18. Bf1
{[%clk 0:01:15.1]} 18... f6 {[%clk 0:02:05.1]} 19. Rab1 {[%clk 0:01:00.6]} 19...
Qb6 {[%clk 0:02:03.6]} 20. Rxb4 {[%clk 0:00:55.6]} 20... Qxb4 {[%clk 0:01:56.6]}
21. Qxb4 {[%clk 0:00:53.8]} 21... cxb4 {[%clk 0:01:57.5]} 22. Rb1 {[%clk
0:00:54]} 22... Rb8 {[%clk 0:01:56.5]} 23. Nf3 {[%clk 0:00:52.9]} 23... b3
{[%clk 0:01:56]} 24. Nd4 {[%clk 0:00:46.2]} 24... b2 {[%clk 0:01:25.9]} 25. Nb3
{[%clk 0:00:38.9]} 25... Nxb3 {[%clk 0:01:15.2]} 26. Rxb2 {[%clk 0:00:38.3]}
26... Ba4 {[%clk 0:01:14.7]} 27. Bd3 {[%clk 0:00:36.5]} 27... Rb6 {[%clk
0:01:13.2]} 28. axb3 {[%clk 0:00:33.1]} 28... Bxb3 {[%clk 0:00:59.3]} 29. c5
{[%clk 0:00:25.8]} 29... dxc5 {[%clk 0:00:52.8]} 30. d6 {[%clk 0:00:26.2]} 30...
exd6 {[%clk 0:00:19.3]} 31. Rxb3 {[%clk 0:00:26.3]} 31... Rxb3 {[%clk
0:00:15.4]} 32. Bc4+ {[%clk 0:00:26.7]} 32... Kf8 {[%clk 0:00:16.2]} 33. Bxb3
{[%clk 0:00:27.6]} 33... Ke7 {[%clk 0:00:16.8]} 34. Kf1 {[%clk 0:00:27.6]} 34...
Kd7 {[%clk 0:00:17.1]} 35. Ke2 {[%clk 0:00:24.6]} 35... Kc6 {[%clk 0:00:17.3]}
36. Bc4 {[%clk 0:00:17.4]} 36... Kb6 {[%clk 0:00:17.3]} 37. Kd3 {[%clk
0:00:15.2]} 37... Ka5 {[%clk 0:00:15.9]} 38. Bg8 {[%clk 0:00:14.9]} 38... h6
{[%clk 0:00:15]} 39. Kc4 {[%clk 0:00:15.3]} 39... g5 {[%clk 0:00:12.4]} 40. f4
{[%clk 0:00:15.7]} 40... Kb6 {[%clk 0:00:10.1]} 41. Kd5 {[%clk 0:00:14.7]} 41...
a5 {[%clk 0:00:08]} 42. Kxd6 {[%clk 0:00:14.6]} 42... c4 {[%clk 0:00:08.3]} 43.
Bxc4 {[%clk 0:00:12.9]} 1-0